bitfinex/quotes_ETHUSD_20240714
["timestamp","ask_amount","ask_price","bid_price","bid_amount"]
[1720930406698,3.52195855,3188.1,3187.9,0.814]
[1720930406900,1.08664901,3188.0,3187.9,0.814]
[1720930408283,1.08666351,3188.0,3187.9,0.814]
[1720930409286,1.08666351,3188.0,3187.8,3.13695]
[1720930409490,1.08666351,3187.9,3187.8,3.13695]
[1720930409731,1.08666351,3188.0,3187.8,3.13695]
[1720930411494,3.1933,3188.1,3187.8,3.13695]
[1720930411695,1.08672421,3188.0,3187.8,3.13695]
[1720930411939,1.08672421,3187.9,3187.8,3.13695]
[1720930412124,1.08670474,3187.9,3187.8,3.13695]
[1720930412318,1.08670474,3187.9,3187.6,3.13715]
[1720930412516,1.08670474,3187.8,3187.7,3.13705]
[1720930412917,1.08670474,3188.0,3187.7,3.13705]
[1720930414550,3.1933,3188.1,3187.7,3.13705]
[1720930414759,1.08673455,3188.0,3187.7,3.13705]
[1720930415064,3.1933,3188.1,3187.7,3.13705]
[1720930415353,1.08674576,3188.0,3187.7,4.65988]
[1720930415534,1.08674576,3187.9,3187.7,4.65988]
[1720930415705,1.08674576,3187.8,3187.7,4.65988]
[1720930418510,3.1933,3188.1,3187.9,3.13677]
[1720930418511,0.825,3188.1,3187.9,3.13677]
[1720930418731,1.08669935,3188.0,3187.9,3.13677]
[1720930421859,0.825,3188.1,3187.9,3.13677]
[1720930422016,1.0867145,3188.0,3187.9,3.13677]
[1720930422220,0.825,3188.1,3187.9,3.13677]
[1720930422420,1.08672643,3188.0,3187.9,3.13677]
[1720930423274,1.08672643,3188.0,3187.7,3.13705]
[1720930423476,0.825,3188.1,3187.7,3.13705]
[1720930423477,3.38652643,3187.9,3187.7,3.13705]
[1720930423625,1.08672643,3187.8,3187.7,3.13705]
[1720930424965,1.08672643,3187.8,3187.7,6.982929]
[1720930425148,1.15366676,3188.1,3187.9,3.13676]
[1720930425319,1.08665327,3188.0,3187.9,3.13676]
[1720930428519,1.08668624,3188.0,3187.9,3.13676]
[1720930429330,3.38648624,3188.0,3187.7,3.13698]
[1720930429527,1.08668624,3187.9,3187.7,3.13698]
[1720930431374,1.08668624,3187.9,3187.8,0.814]
[1720930431575,1.08668624,3188.0,3187.8,4.65976]
[1720930431765,0.825,3188.1,3187.6,0.814]
[1720930432077,1.08668109,3188.0,3187.6,3.13715]
[1720930432271,3.38648109,3187.9,3187.6,3.13715]
[1720930432472,1.08668109,3187.8,3187.5,3.9512]
[1720930433794,1.08668109,3187.8,3187.6,3.13715]
[1720930435149,2.2998,3187.9,3187.6,3.13715]
[1720930435351,1.08679496,3187.8,3187.6,3.13715]
[1720930437889,1.08679496,3187.8,3187.4,3.13728]
[1720930438101,1.08679496,3187.8,3187.3,0.814]
[1720930438478,2.2998,3187.9,3187.3,3.95144]
[1720930438683,1.08683141,3187.7,3187.3,3.95144]
[1720930438859,1.08683141,3187.6,3187.3,3.95144]
[1720930439065,1.08683141,3187.5,3187.3,3.95144]
[1720930439282,1.08683141,3187.8,3187.3,3.95144]
[1720930439485,1.08683141,3187.7,3187.3,3.95144]
[1720930439684,1.08683141,3187.6,3187.3,3.95144]
[1720930439891,1.08683141,3187.5,3187.3,3.95144]
[1720930440093,1.08683141,3187.4,3187.3,3.95144]
[1720930440809,1.08683141,3187.4,3187.3,4.660348]
[1720930441019,2.2998,3187.9,3187.3,4.660348]
[1720930441170,1.08683873,3187.4,3187.3,3.95144]
[1720930446304,1.08683873,3187.4,3187.3,0.814]
[1720930446533,1.08683563,3187.4,3187.3,3.13745]
[1720930447743,1.08686232,3187.4,3187.3,3.13745]
[1720930448105,1.08686639,3187.4,3187.3,3.13745]
[1720930450549,1.08686639,3187.4,3187.1,3.13757]
[1720930450737,1.08686639,3187.3,3187.1,3.13757]
[1720930450906,2.2989,3187.5,3187.1,3.13757]
[1720930451112,1.08689176,3187.4,3187.1,3.13757]
[1720930452209,1.08689247,3187.3,3187.1,3.13757]
[1720930452515,1.08689247,3187.2,3187.1,3.13757]
[1720930452736,1.08689247,3187.4,3187.1,4.146508]
[1720930453059,1.08689247,3187.3,3187.1,4.146508]
[1720930453424,1.08689247,3187.2,3187.1,4.146508]
[1720930454337,2.2989,3187.5,3187.1,3.13757]
[1720930454523,1.0869556,3187.4,3187.1,3.13757]
[1720930455149,1.0869556,3187.4,3187.0,0.814]
[1720930455421,1.0869556,3187.4,3187.0,3.95174]
[1720930455660,1.0869556,3187.4,3187.0,3.13774]
[1720930457143,1.0869556,3187.4,3186.8,3.13793]
[1720930457330,1.0869556,3187.4,3186.9,3.13783]
[1720930457809,2.2989,3187.5,3186.9,3.13783]
[1720930457985,1.08700611,3187.3,3186.9,3.13783]
[1720930458335,1.08700611,3187.2,3187.0,3.13772]
[1720930458615,1.08700611,3187.1,3187.0,3.95172]
[1720930458907,1.08700611,3187.1,3187.0,6.37302]
[1720930459415,1.08700611,3187.1,3187.0,3.95172]
[1720930460185,1.08700611,3187.1,3187.0,3.13772]
[1720930460384,1.08700611,3187.1,3186.9,4.588786]
[1720930460606,1.08700611,3187.0,3186.9,4.588786]
[1720930460775,1.08700611,3187.3,3186.9,4.588786]
[1720930460976,1.08700611,3187.3,3186.9,3.13781]
[1720930461223,2.4636,3187.4,3186.7,10.55804]
[1720930461435,2.4636,3187.1,3186.7,10.55804]
[1720930461711,1.08706028,3187.0,3186.7,10.55804]
[1720930461874,1.08706028,3186.9,3186.7,7.42]
[1720930462075,2.4636,3187.1,3186.7,7.42]
[1720930462076,1.08706028,3186.8,3186.7,7.42]
[1720930462276,1.08706028,3187.0,3186.7,7.42]
[1720930463471,1.08706028,3187.0,3186.7,10.55803]
[1720930464559,2.4636,3187.1,3186.7,10.55803]
[1720930464849,1.08705477,3187.0,3186.7,10.55803]
[1720930465233,1.08705477,3186.9,3186.7,10.55803]
[1720930465530,1.08705477,3186.8,3186.7,10.55803]
[1720930465733,1.08705477,3187.0,3186.7,11.695233]
[1720930465934,1.08705477,3186.9,3186.7,11.695233]
[1720930466234,1.08705477,3186.8,3186.7,11.695233]
[1720930466438,1.08705477,3187.0,3186.7,8.557203]
[1720930466618,1.08705477,3186.9,3186.7,7.42]
[1720930466823,1.08705477,3187.0,3186.7,7.42]
[1720930467233,1.08705477,3187.0,3186.5,3.13823]
[1720930467845,2.4636,3187.1,3186.5,3.13823]
[1720930468045,1.08715853,3186.9,3186.3,0.814]
[1720930468248,2.4636,3186.7,3186.4,3.13833]
[1720930468457,1.08715853,3186.6,3186.4,3.13833]
[1720930469114,1.08715853,3186.6,3186.3,2.19339]
[1720930469315,1.08715853,3186.6,3186.3,5.33179]
[1720930470860,1.08715853,3186.6,3186.3,4.51779]
[1720930471312,1.08720338,3186.5,3186.3,4.51779]
[1720930471518,1.08720338,3186.4,3186.3,4.51779]
[1720930471711,1.08720338,3186.6,3186.3,4.51779]
[1720930471918,1.08720338,3186.6,3186.2,10.55853]
[1720930472957,1.08720338,3186.6,3186.2,3.13853]
[1720930474553,2.4636,3186.7,3186.2,3.13853]
[1720930474854,1.08724169,3186.6,3186.2,3.13853]
[1720930475033,1.08724169,3186.6,3186.0,5.56002]
[1720930475242,1.08724169,3186.6,3186.1,3.694632]
[1720930476032,2.4636,3186.7,3186.1,3.694632]
[1720930476230,1.08724127,3186.5,3186.1,3.694632]
[1720930476433,4.22551127,3186.5,3186.0,3.2353]
[1720930476630,2.4636,3186.4,3185.7,6.95293]
[1720930476837,2.4636,3186.4,3185.8,3.0]
[1720930477052,1.08724127,3186.3,3185.8,3.0]
[1720930477259,1.08724127,3186.3,3185.8,3.937423]
[1720930478260,1.08724127,3186.3,3186.0,3.1387]
[1720930478460,1.08724127,3186.5,3186.0,3.1387]
[1720930478639,1.08724127,3186.4,3186.0,3.1387]
[1720930478837,1.08724127,3186.3,3186.0,3.1387]
[1720930479047,1.08724127,3186.5,3186.1,0.39527]
[1720930479258,1.08724127,3186.4,3186.1,0.39527]
[1720930479440,1.08724127,3186.5,3186.1,0.39527]
[1720930479759,1.08731827,3186.4,3186.1,0.39527]
[1720930480060,2.4636,3186.6,3186.1,0.39527]
[1720930480061,1.08731827,3186.3,3186.1,0.39527]
[1720930480237,1.08731827,3186.5,3186.1,0.39527]
[1720930480435,1.08731827,3186.5,3186.0,3.1387]
[1720930480641,1.08731827,3186.5,3185.9,3.95282]
[1720930481278,1.08731827,3186.5,3185.9,3.13882]
[1720930483029,1.08737037,3186.4,3186.0,3.13872]
[1720930483358,1.08737037,3186.3,3186.0,3.13872]
[1720930483542,1.08737037,3186.2,3186.0,3.13872]
[1720930483867,1.08737037,3186.1,3186.0,3.48211067]
[1720930486477,1.08734976,3186.1,3186.0,3.48211067]
[1720930489698,1.08733708,3186.1,3186.0,3.48211067]
[1720930490092,2.4636,3186.6,3186.0,3.48211067]
[1720930490252,1.08733443,3186.1,3186.0,3.13872]
[1720930492795,1.08733039,3186.1,3186.0,3.13872]
[1720930493008,2.4636,3186.6,3186.0,3.13872]
[1720930493150,1.08732997,3186.5,3186.0,3.13872]
[1720930493351,1.08732997,3186.4,3186.0,3.13872]
[1720930493590,1.08732997,3186.3,3186.0,3.13872]
[1720930493796,1.08732997,3186.5,3186.0,3.13872]
[1720930494176,1.08732997,3186.5,3186.2,3.13853]
[1720930494409,3.36642997,3186.8,3186.2,3.13853]
[1720930494615,1.08732997,3186.7,3186.2,3.13853]
[1720930494903,1.08732997,3186.6,3186.2,3.13853]
[1720930495115,1.08732997,3186.5,3186.3,3.13837]
[1720930495406,2.60776481,3187.0,3186.4,6.07186]
[1720930495611,1.08721474,3186.9,3186.4,6.07186]
[1720930495817,1.08721474,3186.8,3186.4,6.07186]
[1720930496013,1.08721474,3186.9,3186.4,6.07186]
[1720930496303,0.32866481,3187.0,3186.5,3.826816]
[1720930496515,1.08721261,3186.8,3186.5,3.826816]
[1720930496819,1.08721261,3186.7,3186.5,3.826816]
[1720930497001,1.08721261,3186.9,3186.5,3.826816]
[1720930497209,1.08721261,3186.8,3186.5,3.826816]
[1720930497389,3.13744,3187.4,3186.5,3.826816]
[1720930497390,3.95126,3187.5,3186.7,3.13804]
[1720930497566,3.36620364,3187.4,3186.7,3.13804]
[1720930497771,1.08710364,3187.3,3186.7,3.13804]
[1720930498015,1.08710364,3187.2,3186.7,3.13804]
[1720930498308,1.08710364,3187.1,3186.7,3.13804]
[1720930498515,1.08710364,3187.0,3186.9,3.13784]
[1720930499318,1.08710364,3187.0,3186.9,3.95184]
[1720930499671,0.32872292,3187.4,3187.0,3.13769]
[1720930500199,1.08701419,3187.3,3187.0,3.13769]
[1720930500393,1.08701419,3187.2,3187.0,3.13769]
[1720930500606,2.2791,3187.6,3187.1,3.13764]
[1720930500819,1.08701403,3187.5,3187.1,3.13764]
[1720930501021,1.08701403,3187.4,3187.1,3.13764]
[1720930501324,1.08701403,3187.3,3187.2,3.13755]
[1720930502076,1.08687898,3187.3,3187.2,3.13755]
[1720930503113,1.08689746,3187.3,3187.2,3.13755]
[1720930504500,1.08689746,3187.3,3187.1,3.13763]
[1720930504698,1.08689746,3187.2,3187.1,3.13763]
[1720930504901,1.08689746,3187.3,3187.1,3.13763]
[1720930505084,1.08689746,3187.3,3187.2,3.13755]
[1720930505285,2.4763,3187.4,3187.2,3.13755]
[1720930505505,1.08697295,3187.3,3186.9,3.13783]
[1720930505823,1.08697295,3187.2,3187.1,3.13758]
[1720930508682,2.4763,3187.4,3187.1,3.13758]
[1720930508887,1.08695951,3187.3,3187.1,3.13758]
[1720930509919,1.08695951,3187.3,3186.9,3.13777]
[1720930510189,1.08695951,3187.3,3187.0,3.13767]
[1720930510403,1.08695951,3187.3,3187.1,3.13764]
[1720930510837,1.08695951,3187.3,3186.7,3.95202]
[1720930511005,1.08695951,3187.3,3186.7,3.13802]
[1720930511333,1.08695951,3187.3,3186.8,3.13794]
[1720930511819,2.4763,3186.8,3185.7,13.03652]
[1720930512021,1.08723537,3186.7,3185.9,3.13874]
[1720930512336,1.08723537,3186.6,3186.0,3.13872]
[1720930512848,1.08723537,3186.5,3186.0,3.13872]
[1720930513015,1.08723537,3186.6,3186.0,3.13872]
[1720930518593,3.13804,3186.7,3186.0,3.13872]
[1720930518796,1.08734763,3186.5,3186.0,3.13872]
[1720930518996,1.08734763,3186.4,3186.0,3.13872]
[1720930519209,1.08734763,3186.3,3186.0,3.13872]
[1720930519409,1.08734763,3186.2,3186.0,3.13872]
[1720930519610,1.08734763,3186.1,3186.0,3.13872]
[1720930522136,1.08735857,3186.1,3186.0,3.13872]
[1720930522343,1.08735857,3186.1,3186.0,3.847882]
[1720930525537,1.08734432,3186.1,3186.0,3.847882]
[1720930525719,1.08734423,3186.1,3186.0,3.847882]
[1720930525919,1.08734422,3186.1,3186.0,3.847882]
[1720930527709,1.08734422,3186.1,3185.7,2.4775]
[1720930527912,1.08734422,3186.0,3185.9,3.1388]
[1720930528112,2.4149,3186.4,3185.7,3.13902]
[1720930528113,1.08734422,3186.3,3185.7,3.13902]
[1720930528338,1.08734422,3186.3,3185.8,3.13892]
[1720930528643,2.4149,3186.4,3185.8,3.13892]
[1720930528955,1.08739689,3186.3,3185.8,3.13892]
[1720930532142,1.08739185,3186.2,3185.8,3.13892]
[1720930532450,1.08739185,3186.1,3185.8,3.13892]
[1720930532657,1.08739185,3186.3,3185.8,3.13892]
[1720930532909,1.08739185,3186.2,3186.1,0.814]
[1720930533027,1.08739185,3186.2,3186.1,1.437933]
[1720930533221,1.08739185,3186.2,3186.1,4.576563]
[1720930533526,0.32874782,3186.9,3186.6,3.13807]
[1720930533868,1.08716025,3186.8,3186.6,3.13807]
[1720930534068,1.08716025,3186.7,3186.6,3.13807]
[1720930534279,1.08716025,3186.8,3186.6,3.847107]
[1720930534434,1.08716025,3186.7,3186.6,3.847107]
[1720930534763,1.08716025,3186.7,3186.6,4.661107]
[1720930534981,1.08716025,3186.7,3186.6,10.085747]
[1720930535121,0.32871886,3187.3,3187.1,3.13764]
[1720930535324,2.4149,3187.7,3187.1,3.13764]
[1720930535631,1.08699358,3187.6,3187.1,3.13764]
[1720930535827,1.08699358,3187.5,3187.1,3.13764]
[1720930536057,1.08699358,3187.4,3187.1,3.13764]
[1720930536260,1.08699358,3187.3,3187.1,3.13764]
[1720930536564,1.08699358,3187.2,3187.1,3.13764]
[1720930536929,1.08693523,3187.2,3187.1,3.13764]
[1720930538055,1.08693523,3187.2,3187.1,3.846586]
[1720930538368,1.08693523,3187.2,3187.1,6.984226]
[1720930539262,0.32873873,3187.8,3187.3,3.13738]
[1720930539558,1.08689253,3187.7,3187.3,3.13738]
[1720930539760,0.32873873,3187.8,3187.1,3.846586]
[1720930539761,1.08689253,3187.6,3187.4,3.13734]
[1720930539972,1.08689253,3187.5,3187.4,3.13734]
[1720930542035,1.08687651,3187.5,3187.4,3.13734]
[1720930543855,1.08687651,3187.5,3187.4,6.27469]
[1720930544059,1.08687651,3187.5,3187.4,7.225309]
[1720930544563,1.08687651,3187.5,3187.4,8.039309]
[1720930544869,0.32870212,3188.0,3187.6,3.1371]
[1720930545167,1.08678663,3187.9,3187.6,3.1371]
[1720930545465,0.32870212,3188.0,3187.7,3.13705]
[1720930545466,1.08678841,3187.8,3187.7,3.13705]
[1720930547755,1.08678841,3187.8,3187.5,3.13724]
[1720930547969,1.08678841,3187.7,3187.5,3.13724]
[1720930548171,1.08678841,3187.9,3187.5,3.13724]
[1720930548450,1.08678841,3187.8,3187.5,3.13724]
[1720930548644,1.08683729,3187.7,3187.6,3.13715]
[1720930551888,0.32870212,3188.0,3187.8,3.13695]
[1720930552095,1.08676954,3187.9,3187.8,3.13695]
[1720930552278,0.32870212,3188.0,3187.8,3.13695]
[1720930552469,1.08678196,3187.9,3187.8,3.13695]
[1720930555197,0.32870212,3188.0,3187.8,3.13695]
[1720930555404,1.08676571,3187.9,3187.8,3.13695]
[1720930555701,1.08676571,3187.9,3187.6,3.13715]
[1720930555894,1.08676571,3187.8,3187.6,3.13715]
[1720930556100,1.08676571,3187.9,3187.7,3.13696]
[1720930556295,1.70857071,3188.3,3187.8,3.13693]
[1720930556599,1.08677889,3188.2,3187.8,3.13693]
[1720930556761,1.08677889,3188.1,3187.8,3.13693]
[1720930556967,1.08677889,3188.3,3187.8,3.13693]
[1720930557979,1.08677889,3188.3,3187.7,3.13703]
[1720930558367,2.2676,3188.2,3187.7,3.13703]
[1720930558771,1.08678293,3188.1,3187.7,3.13703]
[1720930558970,1.08678293,3188.0,3187.7,3.13703]
[1720930559171,1.08678293,3188.1,3187.5,3.13717]
[1720930559373,1.4300636,3188.1,3187.5,3.13717]
[1720930559705,1.08678293,3188.0,3187.5,3.13717]
[1720930560772,2.2873,3187.8,3187.2,3.13753]
[1720930561103,2.2873,3187.8,3186.4,10.55831]
[1720930561104,3.13755,3187.2,3186.4,10.55831]
[1720930561288,0.814,3187.1,3186.4,10.55831]
[1720930561482,1.90109433,3187.1,3186.5,3.13822]
[1720930561686,1.08715201,3187.0,3186.5,3.13822]
[1720930562015,1.08715201,3186.9,3186.5,3.13822]
[1720930562214,1.08715201,3186.8,3186.5,3.13822]
[1720930562509,1.08715201,3186.7,3186.6,3.13814]
[1720930564191,5.42456,3187.5,3186.7,3.13799]
[1720930564386,1.08709166,3187.4,3186.7,3.13799]
[1720930564589,1.08709166,3187.3,3186.7,3.13799]
[1720930564792,1.08709166,3187.2,3186.7,3.13799]
[1720930564988,1.08709166,3187.1,3186.7,3.13799]
[1720930565213,1.08709166,3187.4,3186.7,3.13799]
[1720930565436,1.08709166,3187.3,3186.7,3.13799]
[1720930565630,1.08709166,3187.4,3186.7,3.13799]
[1720930565924,1.08709166,3187.3,3186.7,3.13799]
[1720930566126,1.08709166,3187.4,3186.7,3.13799]
[1720930566328,1.08709166,3187.3,3186.7,3.13799]
[1720930566629,1.08709166,3187.2,3186.7,3.8283774]
[1720930566830,1.08709166,3187.1,3186.7,3.8283774]
[1720930567026,1.90109166,3187.4,3186.7,3.13799]
[1720930567217,1.08709166,3187.3,3186.7,3.13799]
[1720930567522,3.13749,3187.3,3186.5,3.13822]
[1720930567693,1.0871185,3187.2,3186.5,3.13822]
[1720930567888,1.0871185,3187.1,3186.5,3.533442]
[1720930568128,1.0871185,3187.2,3186.5,3.533442]
[1720930568308,1.0871185,3187.1,3186.5,5.849242]
[1720930568495,1.0871185,3187.0,3186.5,5.849242]
[1720930568825,1.0871185,3186.9,3186.7,3.13797]
[1720930569029,5.42418,3187.9,3186.8,0.814]
[1720930569201,1.08696694,3187.8,3187.0,0.814]
[1720930569407,1.08696694,3187.7,3187.2,3.13753]
[1720930569615,1.08696694,3187.6,3187.2,3.13753]
[1720930569819,1.08696694,3187.5,3187.2,3.13753]
[1720930569996,1.08696694,3187.4,3187.2,3.13753]
[1720930570196,1.08696694,3187.3,3187.2,3.13753]
[1720930570941,5.42418,3187.9,3187.2,3.13753]
[1720930571123,1.08692648,3187.8,3187.2,3.13753]
[1720930571323,1.08692648,3187.7,3187.2,3.13753]
[1720930571529,1.41565584,3187.8,3187.2,3.13753]
[1720930571699,1.08692648,3187.7,3187.2,3.13753]
[1720930571894,1.08692648,3187.6,3187.2,3.13753]
[1720930572111,1.08692648,3187.5,3187.2,3.13753]
[1720930572352,1.08692648,3187.7,3187.2,3.13753]
[1720930572655,1.08692648,3187.6,3187.3,3.13745]
[1720930572980,0.32872936,3187.8,3187.3,3.13745]
[1720930572981,1.08692648,3187.5,3187.3,3.13745]
[1720930573104,1.08692648,3187.4,3187.3,3.13745]
[1720930574298,0.32872936,3187.8,3187.3,3.13745]
[1720930574499,1.08691525,3187.7,3187.3,3.13745]
[1720930574796,0.32872936,3187.8,3187.3,3.13745]
[1720930574797,1.08689836,3187.6,3187.3,3.13745]
[1720930575042,1.08689836,3187.5,3187.3,3.764948]
[1720930575240,1.08689836,3187.4,3187.3,3.764948]
[1720930577516,0.32872936,3187.8,3187.3,3.764948]
[1720930577704,1.08686638,3187.7,3187.3,3.764948]
[1720930577902,1.08686638,3187.6,3187.5,3.13719]
[1720930578127,1.08686638,3187.6,3187.5,8.0149088]
[1720930578333,2.2873,3188.7,3187.9,3.13681]
[1720930578533,0.32866783,3188.5,3188.0,0.814]
[1720930578736,1.08654918,3188.4,3188.2,3.13656]
[1720930580704,0.32866783,3188.5,3188.2,3.13656]
[1720930580905,1.08661298,3188.4,3188.2,3.13656]
[1720930581198,1.08661298,3188.3,3188.2,3.13656]
[1720930581602,1.08661298,3188.4,3188.2,3.13656]
[1720930584271,0.32866783,3188.5,3188.2,3.13656]
[1720930584474,1.08662494,3188.4,3188.0,3.13675]
[1720930585535,1.08662494,3188.4,3188.1,3.13664]
[1720930586230,1.08662494,3188.4,3187.9,3.13679]
[1720930586434,1.08662494,3188.4,3187.8,3.13694]
[1720930586977,1.08662494,3188.4,3188.1,3.13666]
[1720930587655,1.08668288,3188.3,3188.1,3.13666]
[1720930587841,1.08668288,3188.2,3188.1,3.13666]
[1720930588038,1.08668171,3188.2,3188.1,3.13666]
[1720930588431,1.08668171,3188.2,3187.9,3.1368]
[1720930588666,1.08668171,3188.1,3187.9,3.1368]
[1720930588867,1.08668171,3188.0,3187.8,3.13694]
[1720930589786,1.16510284,3188.0,3187.4,3.13727]
[1720930589991,1.08668171,3187.9,3187.5,3.13725]
[1720930590638,0.07842113,3188.0,3187.5,3.13725]
[1720930590855,1.08677933,3187.9,3187.5,3.13725]
[1720930591052,1.08677933,3187.8,3187.5,3.13725]
[1720930591272,1.08677933,3187.7,3187.6,3.13715]
[1720930591459,1.08677933,3187.9,3187.6,3.13715]
[1720930591772,0.32866783,3188.5,3187.8,3.13686]
[1720930591968,1.08675054,3188.4,3187.8,3.13686]
[1720930592177,1.08675054,3188.3,3187.8,3.13686]
[1720930592377,1.08675054,3188.4,3187.9,3.13684]
[1720930592540,0.32866783,3188.5,3187.9,3.13684]
[1720930592541,1.08675054,3188.3,3187.9,3.13684]
[1720930592742,1.08675054,3188.2,3187.9,3.13684]
[1720930592947,1.08675054,3188.1,3187.9,3.13684]
[1720930593286,1.08675054,3188.0,3187.9,3.13684]
[1720930594065,0.32866783,3188.5,3188.0,3.13674]
[1720930594378,1.0866139,3188.4,3188.2,3.13649]
[1720930594675,0.32866783,3188.5,3188.2,3.13649]
[1720930594676,1.0866139,3188.3,3188.2,3.13649]
[1720930595879,1.0866139,3188.3,3188.0,3.13669]
[1720930596050,1.0866139,3188.2,3188.1,3.13665]
[1720930596242,1.0866139,3188.2,3188.0,3.13669]
[1720930596439,0.32866783,3188.5,3188.1,3.13666]
[1720930596440,1.0866139,3188.4,3188.1,3.13666]
[1720930597052,0.32866783,3188.5,3188.1,3.13666]
[1720930597288,1.08657287,3188.4,3188.1,3.13666]
[1720930597483,1.08657311,3188.3,3188.1,3.13666]
[1720930597790,1.08657311,3188.2,3188.1,3.13666]
[1720930598285,1.08657311,3188.2,3188.1,3.763998]
[1720930599561,1.08657311,3188.2,3188.1,6.900658]
[1720930600794,0.32866783,3188.5,3188.3,3.13639]
[1720930600953,1.08651624,3188.4,3188.3,3.13639]
[1720930601284,1.08652201,3188.4,3188.3,3.13639]
[1720930603856,0.32866783,3188.5,3188.4,3.13636]
[1720930604279,1.41516554,3188.5,3188.4,3.13636]
[1720930607486,1.41522588,3188.5,3188.4,3.13636]
[1720930610871,1.41522042,3188.5,3188.4,3.13636]
[1720930611196,0.32866783,3188.5,3188.4,3.13636]
[1720930611668,1.41522624,3188.5,3188.4,3.13636]
[1720930611861,1.41522624,3188.5,3188.2,3.13654]
[1720930612062,1.08655841,3188.4,3188.3,3.13646]
[1720930614093,1.08655422,3188.4,3188.3,3.13646]
[1720930615196,2.4268,3188.3,3187.9,3.13684]
[1720930615415,1.08655422,3188.2,3187.9,3.13684]
[1720930615720,1.08655422,3188.2,3187.8,3.13692]
[1720930615721,1.16497276,3188.2,3187.8,3.13692]
[1720930615890,1.08655422,3188.1,3187.8,3.13692]
[1720930616593,1.08655422,3188.2,3187.8,3.13692]
[1720930616809,0.38975564,3188.1,3187.8,3.13692]
[1720930616998,1.08655422,3188.0,3187.8,3.13692]
[1720930617520,3.54341918,3188.5,3187.8,3.13692]
[1720930617521,1.08673954,3187.9,3187.8,6.27387]
[1720930617818,1.08673954,3187.9,3187.8,7.63687]
[1720930617988,1.08673954,3187.9,3187.8,8.400557]
[1720930620584,0.32866783,3188.5,3188.3,3.13642]
[1720930620819,1.08658415,3188.4,3188.3,3.13642]
[1720930623058,1.08658415,3188.4,3188.3,6.27288]
[1720930623229,0.32866783,3188.5,3188.4,6.27272]
[1720930623454,1.41512289,3188.5,3188.4,7.08572]
[1720930623619,1.08645506,3188.9,3188.6,3.1361]
[1720930623942,1.08645506,3188.8,3188.7,3.13607]
[1720930626548,2.3851,3189.0,3188.8,3.13596]
[1720930626704,1.08643835,3188.9,3188.8,3.13596]
[1720930627903,1.08643835,3188.9,3188.8,7.08493]
[1720930629332,1.08643835,3188.9,3188.8,7.63493]
[1720930629711,0.32863451,3189.1,3189.0,3.13577]
[1720930629920,1.4149342,3189.1,3189.0,3.13577]
[1720930630608,1.4149342,3189.1,3189.0,3.94877]
[1720930631235,1.4149342,3189.1,3189.0,7.08454]
[1720930631612,1.08629969,3189.1,3189.0,7.08454]
[1720930631857,1.08629969,3189.1,3189.0,7.9243433]
[1720930632057,1.08629969,3189.1,3189.0,8.4743433]
[1720930633046,2.71368535,3189.7,3189.2,3.13556]
[1720930633352,1.08628931,3189.6,3189.2,3.13556]
[1720930633553,1.08628931,3189.5,3189.2,3.13556]
[1720930633842,1.08628931,3189.6,3189.2,3.13556]
[1720930634142,1.08628931,3189.5,3189.2,3.13556]
[1720930634358,1.08628931,3189.4,3189.2,3.13556]
[1720930634509,1.08628931,3189.3,3189.2,3.13556]
[1720930636209,1.08628931,3189.3,3189.2,3.898993]
[1720930636552,1.08622815,3189.3,3189.2,3.898993]
[1720930637061,1.08621379,3189.3,3189.2,3.898993]
[1720930639155,1.08621379,3189.3,3189.2,3.13556]
[1720930639707,1.08628066,3189.3,3189.2,3.13556]
[1720930639956,1.08628066,3189.3,3189.2,3.94856]
[1720930640462,1.08628066,3189.3,3189.2,13.24662]
[1720930640610,1.08628066,3189.3,3189.2,9.29804]
[1720930640814,1.08628066,3189.3,3189.2,11.354421]
[1720930642048,1.08628066,3189.3,3189.2,8.877521]
[1720930642264,1.08628066,3189.3,3189.2,3.68556]
[1720930642551,1.08628066,3189.3,3189.1,3.94867]
[1720930642741,2.3527,3189.5,3189.2,3.13558]
[1720930643256,1.08621694,3189.4,3189.2,3.13558]
[1720930643550,1.08621694,3189.3,3189.2,3.13558]
[1720930645428,1.08621694,3189.3,3189.2,6.979585]
[1720930645750,1.08621694,3189.3,3189.2,7.529585]
[1720930646459,1.08617887,3189.3,3189.2,7.529585]
[1720930647318,1.08617887,3189.3,3189.2,10.006485]
[1720930649622,1.08617887,3189.3,3189.2,7.529585]
[1720930650135,2.3527,3189.7,3189.5,3.13519]
[1720930650349,1.08612288,3189.6,3189.5,3.13519]
[1720930652536,1.08612288,3189.6,3189.3,3.13541]
[1720930652725,1.08612288,3189.5,3189.3,3.94841]
[1720930652931,1.08614249,3189.4,3189.3,3.94841]
[1720930654435,1.08614249,3189.4,3189.3,4.711808]
[1720930656081,1.08614249,3189.4,3189.3,8.397288]
[1720930656280,0.1161013,3189.8,3189.4,3.13534]
[1720930656443,0.1161013,3189.8,3189.3,2.126398]
[1720930656444,0.1161013,3189.8,3189.7,3.13509]
[1720930657083,0.1161013,3189.8,3189.7,3.94809]
[1720930657241,1.20211544,3189.8,3189.7,3.94809]
[1720930657443,1.20208166,3189.8,3189.7,3.94809]
[1720930658853,1.20208166,3189.8,3189.7,8.094196]
[1720930659054,1.20208166,3189.8,3189.7,8.644196]
[1720930659715,1.20208051,3189.8,3189.7,8.644196]
[1720930663088,0.1161013,3189.8,3189.7,8.644196]
[1720930663963,1.20200425,3189.8,3189.7,8.644196]
[1720930664155,1.20200425,3189.8,3189.7,11.779286]
[1720930664358,0.1161013,3189.8,3189.7,17.041586]
[1720930667291,0.1161013,3189.8,3189.7,10.831196]
[1720930667500,0.1161013,3189.8,3189.7,11.644196]
[1720930670394,0.1161013,3189.8,3189.7,10.831196]
[1720930670566,0.1161013,3189.8,3189.7,11.644196]
[1720930670995,1.20206916,3189.8,3189.7,11.644196]
[1720930671981,0.1161013,3189.8,3189.7,11.644196]
[1720930672398,1.20205932,3189.8,3189.7,11.644196]
[1720930672904,1.20206747,3189.8,3189.7,11.644196]
[1720930676182,0.1161013,3189.8,3189.7,11.644196]
[1720930676383,1.20204124,3189.8,3189.7,11.644196]
[1720930676705,0.1161013,3189.8,3189.7,11.644196]